[Event "NJSK 2024 A"]
[Site "Groningen, Netherlands"]
[Date "2024.04.27"]
[Round "1.1"]
[White "Blom, Rens"]
[Black "Slagboom, Leandro"]
[Result "0-1"]
[TimeControl "90min/40moves + 30min + 30sec/move"]
[WhiteElo "1963"]
[BlackElo "2326"]

1. c4 {[%clk 01:30:30]} {[%emt 02:13:01]} e6 {[%clk 01:30:29]} {[%emt
00:00:49]} 2. e4 {[%clk 01:31:21]} {[%emt 00:00:08]} c5 {[%clk 01:30:47]}
{[%emt 00:00:11]} 3. Nc3 {[%clk 01:31:38]} {[%emt 00:00:13]} Nc6 {[%clk
01:30:55]} {[%emt 00:00:22]} 4. g3 {[%clk 01:31:13]} {[%emt 00:00:56]} Nd4
{[%clk 01:30:44]} {[%emt 00:00:41]} 5. Bg2 {[%clk 01:27:08]} {[%emt 00:04:35]}
Ne7 {[%clk 01:30:02]} {[%emt 00:01:12]} 6. Nge2 {[%clk 01:24:35]} {[%emt
00:03:03]} Nec6 {[%clk 01:29:53]} {[%emt 00:00:39]} 7. O-O {[%clk 01:23:32]}
{[%emt 00:01:32]} Be7 {[%clk 01:30:08]} {[%emt 00:00:15]} 8. d3 {[%clk
01:23:15]} {[%emt 00:00:48]} O-O {[%clk 01:30:15]} {[%emt 00:00:22]} 9. Nxd4
{[%clk 01:17:22]} {[%emt 00:06:23]} cxd4 {[%clk 01:28:13]} {[%emt 00:02:32]} 10.
Ne2 {[%clk 01:16:51]} {[%emt 00:01:02]} Rb8 {[%clk 01:25:49]} {[%emt 00:02:53]}
11. b3 {[%clk 01:10:25]} {[%emt 00:06:56]} b5 {[%clk 01:24:09]} {[%emt
00:02:10]} 12. cxb5 {[%clk 01:05:08]} {[%emt 00:05:47]} Rxb5 {[%clk 01:22:55]}
{[%emt 00:01:44]} 13. Bb2 {[%clk 01:05:29]} {[%emt 00:00:10]} e5 {[%emt
00:11:08]} 14. f4 {[%clk 00:59:43]} d6 {[%clk 01:15:43]} {[%emt 00:03:19]} 15.
Kh1 {[%clk 00:54:56]} {[%emt 00:05:18]} a5 {[%clk 01:12:39]} {[%emt 00:03:33]}
16. Rc1 {[%clk 00:51:46]} {[%emt 00:03:41]} Nb4 {[%clk 01:06:51]} {[%emt
00:06:17]} 17. Ra1 {[%clk 00:42:43]} {[%emt 00:09:33]} Rc5 {[%clk 00:56:57]}
{[%emt 00:10:23]} 18. Ba3 {[%clk 00:39:02]} {[%emt 00:04:12]} Qb6 {[%clk
00:52:44]} {[%emt 00:04:43]} 19. Bxb4 {[%clk 00:32:27]} {[%emt 00:07:06]} Qxb4
{[%clk 00:48:31]} {[%emt 00:04:43]} 20. Rc1 {[%clk 00:25:33]} {[%emt 00:07:24]}
Ba6 {[%clk 00:45:20]} {[%emt 00:03:39]} 21. Bh3 {[%clk 00:22:40]} {[%emt
00:03:24]} g6 {[%clk 00:38:25]} {[%emt 00:07:25]} 22. Rxc5 {[%clk 00:20:02]}
{[%emt 00:03:09]} Qxc5 {[%clk 00:38:37]} {[%emt 00:00:17]} 23. f5 {[%clk
00:19:43]} {[%emt 00:00:49]} Bg5 {[%clk 00:36:17]} {[%emt 00:02:50]} 24. Ng1
{[%clk 00:17:32]} {[%emt 00:02:41]} Be3 {[%clk 00:34:25]} {[%emt 00:02:22]} 25.
Nf3 {[%clk 00:13:14]} {[%emt 00:04:49]} Qc3 {[%clk 00:20:45]} {[%emt 00:14:09]}
26. Ne1 {[%clk 00:13:00]} {[%emt 00:00:45]} Qd2 {[%clk 00:15:24]} {[%emt
00:05:51]} 27. Qf3 {[%clk 00:08:29]} {[%emt 00:05:01]} f6 {[%clk 00:08:17]}
{[%emt 00:07:36]} 28. fxg6 {[%clk 00:08:14]} {[%emt 00:00:45]} hxg6 {[%clk
00:08:46]} {[%emt 00:00:01]} 29. Be6+ {[%clk 00:05:01]} {[%emt 00:03:43]} Kg7
{[%clk 00:09:02]} {[%emt 00:00:13]} 30. Bc4 {[%clk 00:03:26]} {[%emt 00:02:06]}
Bxc4 {[%clk 00:09:10]} {[%emt 00:00:22]} 31. bxc4 {[%clk 00:03:54]} {[%emt
00:00:03]} Qxa2 {[%clk 00:08:29]} {[%emt 00:01:11]} 32. Ng2 {[%clk 00:03:22]}
{[%emt 00:01:01]} Qd2 {[%clk 00:06:30]} {[%emt 00:02:29]} 33. Nxe3 {[%clk
00:01:57]} {[%emt 00:01:56]} dxe3 {[%clk 00:06:24]} {[%emt 00:00:36]} 34. Rd1
{[%clk 00:00:31]} {[%emt 00:01:56]} e2 {[%clk 00:06:34]} {[%emt 00:00:19]} 0-1

[Event "NJSK 2024 A"]
[Site "Groningen, Netherlands"]
[Date "2024.04.27"]
[Round "1.2"]
[White "Labruyere, Roger"]
[Black "Wiersma, Camiel"]
[Result "1-0"]
[TimeControl "90min/40moves + 30min + 30sec/move"]
[WhiteElo "2267"]
[BlackElo "1963"]

1. e4 {[%clk 01:30:57]} {[%emt 00:00:03]} c5 {[%clk 01:30:53]} {[%emt
00:00:07]} 2. Nf3 {[%clk 01:31:17]} {[%emt 00:00:10]} Nc6 {[%clk 01:31:15]}
{[%emt 00:00:08]} 3. d4 {[%clk 01:31:39]} {[%emt 00:00:08]} cxd4 {[%clk
01:31:38]} {[%emt 00:00:06]} 4. Nxd4 {[%clk 01:32:07]} {[%emt 00:00:03]} Nf6
{[%clk 01:31:59]} {[%emt 00:00:09]} 5. Nc3 {[%clk 01:32:31]} {[%emt 00:00:07]}
e5 {[%clk 01:32:24]} {[%emt 00:00:04]} 6. Ndb5 {[%clk 01:32:57]} {[%emt
00:00:04]} d6 {[%clk 01:32:49]} {[%emt 00:00:05]} 7. Nd5 {[%clk 01:33:12]}
{[%emt 00:00:15]} Nxd5 {[%clk 01:32:56]} {[%emt 00:00:23]} 8. exd5 {[%clk
01:33:37]} {[%emt 00:00:06]} Nb8 {[%clk 01:33:03]} {[%emt 00:00:22]} 9. c4
{[%clk 01:34:01]} {[%emt 00:00:07]} a6 {[%clk 01:33:27]} {[%emt 00:00:05]} 10.
Nc3 {[%clk 01:34:27]} {[%emt 00:00:04]} Be7 {[%clk 01:33:50]} {[%emt 00:00:06]}
11. Be2 {[%clk 01:34:22]} {[%emt 00:00:35]} O-O {[%clk 01:34:12]} {[%emt
00:00:09]} 12. O-O {[%clk 01:34:49]} {[%emt 00:00:03]} f5 {[%clk 01:34:22]}
{[%emt 00:00:19]} 13. f4 {[%clk 01:27:00]} {[%emt 00:08:19]} Nd7 {[%clk
01:34:44]} {[%emt 00:00:09]} 14. Kh1 {[%clk 01:26:06]} {[%emt 00:01:24]} Bf6
{[%clk 01:34:14]} {[%emt 00:01:00]} 15. a4 {[%clk 01:23:50]} {[%emt 00:02:47]}
a5 {[%clk 01:33:25]} {[%emt 00:01:18]} 16. Nb5 {[%clk 01:23:33]} {[%emt
00:00:47]} Nc5 {[%clk 01:32:38]} {[%emt 00:01:17]} 17. Qc2 {[%clk 01:14:35]}
{[%emt 00:09:28]} Qe7 {[%clk 01:13:01]} {[%emt 00:20:07]} 18. Be3 {[%clk
00:35:09]} {[%emt 00:39:56]} b6 {[%clk 01:03:58]} {[%emt 00:09:34]} 19. Rf3
{[%clk 00:29:34]} {[%emt 00:06:04]} Bd7 {[%clk 00:56:03]} {[%emt 00:08:24]} 20.
Raf1 {[%clk 00:18:59]} {[%emt 00:11:06]} Rae8 {[%clk 00:42:49]} {[%emt
00:13:44]} 21. Bd1 {[%clk 00:16:38]} {[%emt 00:02:52]} Bxb5 {[%clk 00:29:26]}
{[%emt 00:13:52]} 22. axb5 {[%clk 00:17:04]} {[%emt 00:00:04]} e4 {[%clk
00:16:21]} {[%emt 00:13:35]} 23. Rh3 {[%clk 00:17:30]} {[%emt 00:00:04]} Qc7
{[%clk 00:10:07]} {[%emt 00:06:44]} 24. g4 {[%clk 00:17:42]} {[%emt 00:00:18]}
fxg4 {[%clk 00:10:10]} {[%emt 00:00:28]} 25. Bxg4 {[%clk 00:18:07]} {[%emt
00:00:04]} g6 {[%clk 00:09:36]} {[%emt 00:01:05]} 26. Qg2 {[%clk 00:15:55]}
{[%emt 00:02:42]} Nd3 {[%clk 00:07:23]} {[%emt 00:02:42]} 27. Be6+ {[%clk
00:16:00]} {[%emt 00:00:24]} Rxe6 {[%clk 00:06:42]} {[%emt 00:01:12]} 28. dxe6
{[%clk 00:16:29]} {[%emt 00:00:01]} Qxc4 {[%clk 00:06:55]} {[%emt 00:00:17]} 29.
f5 {[%clk 00:16:22]} {[%emt 00:00:38]} Ne5 {[%clk 00:06:58]} {[%emt 00:00:27]}
30. fxg6 {[%clk 00:16:34]} {[%emt 00:00:17]} Nxg6 {[%clk 00:07:13]} {[%emt
00:00:15]} 31. Rg1 {[%clk 00:15:18]} {[%emt 00:01:47]} Qxe6 {[%clk 00:05:08]}
{[%emt 00:02:35]} 32. Rxh7 {[%clk 00:15:34]} {[%emt 00:00:14]} Be5 {[%clk
00:05:36]} {[%emt 00:00:01]} 33. Rh6 {[%clk 00:15:48]} {[%emt 00:00:16]} Rf6
{[%clk 00:05:54]} {[%emt 00:00:12]} 34. Rxg6+ {[%clk 00:16:12]} {[%emt
00:00:06]} 1-0

[Event "NJSK 2024 A"]
[Site "Groningen, Netherlands"]
[Date "2024.04.27"]
[Round "1.3"]
[White "Smid, Jelle"]
[Black "Bakija, Alan"]
[Result "1/2-1/2"]
[TimeControl "90min/40moves + 30min + 30sec/move"]
[WhiteElo "1917"]
[BlackElo "2101"]

1. e4 {[%clk 01:30:58]} {[%emt 00:00:02]} d6 {[%clk 01:30:53]} {[%emt
00:00:08]} 2. d4 {[%clk 01:31:21]} {[%emt 00:00:07]} Nf6 {[%clk 01:31:07]}
{[%emt 00:00:16]} 3. Nc3 {[%clk 01:31:45]} {[%emt 00:00:07]} e5 {[%clk
01:31:33]} {[%emt 00:00:04]} 4. Nf3 {[%clk 01:24:56]} {[%emt 00:07:18]} Nbd7
{[%clk 01:31:56]} {[%emt 00:00:07]} 5. Be2 {[%clk 01:21:50]} {[%emt 00:03:37]}
Be7 {[%clk 01:31:38]} {[%emt 00:00:48]} 6. h3 {[%clk 01:21:39]} {[%emt
00:00:41]} c6 {[%clk 01:31:23]} {[%emt 00:00:45]} 7. Be3 {[%clk 01:20:58]}
{[%emt 00:01:11]} b5 {[%clk 01:29:21]} {[%emt 00:02:32]} 8. a3 {[%clk
01:19:13]} {[%emt 00:02:15]} Qc7 {[%clk 01:27:05]} {[%emt 00:02:45]} 9. O-O
{[%clk 01:10:30]} {[%emt 00:09:14]} O-O {[%clk 01:27:12]} {[%emt 00:00:23]} 10.
Re1 {[%clk 00:54:31]} {[%emt 00:16:29]} Re8 {[%clk 01:25:15]} {[%emt 00:02:27]}
11. Bf1 {[%clk 00:52:32]} {[%emt 00:02:29]} Bf8 {[%clk 01:23:18]} {[%emt
00:02:27]} 12. Bg5 {[%clk 00:49:21]} {[%emt 00:03:41]} Bb7 {[%clk 01:16:05]}
{[%emt 00:07:43]} 13. Qd3 {[%clk 00:40:11]} {[%emt 00:09:40]} a5 {[%clk
01:02:56]} {[%emt 00:13:38]} 14. b4 {[%clk 00:36:51]} {[%emt 00:03:50]} axb4
{[%clk 00:49:39]} {[%emt 00:13:47]} 15. axb4 {[%clk 00:37:16]} {[%emt
00:00:06]} Rxa1 {[%clk 00:50:04]} {[%emt 00:00:06]} 16. Rxa1 {[%clk 00:37:41]}
{[%emt 00:00:04]} d5 {[%clk 00:40:40]} {[%emt 00:09:53]} 17. Bxf6 {[%clk
00:34:56]} {[%emt 00:03:15]} Nxf6 {[%clk 00:40:56]} {[%emt 00:00:15]} 18. dxe5
{[%clk 00:34:02]} {[%emt 00:01:24]} dxe4 {[%clk 00:33:34]} {[%emt 00:07:52]} 19.
Nxe4 {[%clk 00:33:25]} {[%emt 00:01:07]} Nxe4 {[%clk 00:32:13]} {[%emt
00:01:51]} 20. Qxe4 {[%clk 00:33:49]} {[%emt 00:00:06]} c5 {[%clk 00:31:55]}
{[%emt 00:00:48]} 21. Qg4 {[%clk 00:27:19]} {[%emt 00:07:00]} c4 {[%clk
00:22:18]} {[%emt 00:10:07]} 22. c3 {[%clk 00:26:53]} {[%emt 00:00:56]} Bxf3
{[%clk 00:11:07]} {[%emt 00:11:41]} 23. Qxf3 {[%clk 00:27:18]} {[%emt
00:00:05]} Qxe5 {[%clk 00:10:12]} {[%emt 00:01:25]} 24. Ra7 {[%clk 00:26:41]}
{[%emt 00:01:07]} Re7 {[%clk 00:10:26]} {[%emt 00:00:16]} 25. Ra8 {[%clk
00:26:26]} {[%emt 00:00:45]} Qe4 {[%clk 00:06:48]} {[%emt 00:04:08]} 26. Qxe4
{[%clk 00:26:19]} {[%emt 00:00:37]} Rxe4 {[%clk 00:07:16]} {[%emt 00:00:02]} 27.
Rb8 {[%clk 00:26:27]} {[%emt 00:00:22]} Re1 {[%clk 00:01:04]} {[%emt 00:06:42]}
28. Rxb5 {[%clk 00:26:30]} {[%emt 00:00:26]} Rc1 {[%clk 00:01:30]} {[%emt
00:00:04]} 29. Rb8 {[%clk 00:26:42]} {[%emt 00:00:18]} Rxc3 {[%clk 00:01:54]}
{[%emt 00:00:06]} 30. b5 {[%clk 00:25:54]} {[%emt 00:01:19]} Rc1 {[%clk
00:02:05]} {[%emt 00:00:19]} 31. b6 {[%clk 00:26:04]} {[%emt 00:00:20]} c3
{[%clk 00:02:32]} {[%emt 00:00:03]} 32. b7 {[%clk 00:26:07]} {[%emt 00:00:27]}
Rb1 {[%clk 00:03:00]} {[%emt 00:00:02]} 33. Rc8 {[%clk 00:26:14]} {[%emt
00:00:24]} Rxb7 {[%clk 00:03:14]} {[%emt 00:00:16]} 34. Rxc3 {[%clk 00:26:33]}
{[%emt 00:00:09]} 1/2-1/2

[Event "NJSK 2024 A"]
[Site "Groningen, Netherlands"]
[Date "2024.04.27"]
[Round "1.4"]
[White "Snijders, Take"]
[Black "Klugstedt, Vincent"]
[Result "1/2-1/2"]
[TimeControl "90min/40moves + 30min + 30sec/move"]
[WhiteElo "2090"]
[BlackElo "1913"]

1. e4 {[%clk 01:30:56]} {[%emt 00:00:03]} c5 {[%clk 01:30:46]} {[%emt
00:00:15]} 2. Nf3 {[%clk 01:31:16]} {[%emt 00:00:10]} g6 {[%clk 01:30:56]}
{[%emt 00:00:21]} 3. d4 {[%clk 01:31:23]} {[%emt 00:00:22]} cxd4 {[%clk
01:31:20]} {[%emt 00:00:06]} 4. Nxd4 {[%clk 01:31:41]} {[%emt 00:00:12]} Bg7
{[%clk 01:31:43]} {[%emt 00:00:07]} 5. c4 {[%clk 01:31:38]} {[%emt 00:00:32]}
Nc6 {[%clk 01:31:56]} {[%emt 00:00:17]} 6. Be3 {[%clk 01:31:47]} {[%emt
00:00:21]} Nf6 {[%clk 01:32:15]} {[%emt 00:00:12]} 7. Nc3 {[%clk 01:31:59]}
{[%emt 00:00:18]} O-O {[%clk 01:32:06]} {[%emt 00:00:38]} 8. Be2 {[%clk
01:31:50]} {[%emt 00:00:39]} d6 {[%clk 01:32:15]} {[%emt 00:00:22]} 9. O-O
{[%clk 01:31:56]} {[%emt 00:00:23]} Nxd4 {[%clk 01:28:29]} {[%emt 00:04:17]} 10.
Bxd4 {[%clk 01:32:06]} {[%emt 00:00:20]} a5 {[%clk 01:28:36]} {[%emt 00:00:24]}
11. b3 {[%clk 01:25:28]} {[%emt 00:07:07]} Bd7 {[%clk 01:28:45]} {[%emt
00:00:21]} 12. Qc2 {[%clk 01:19:12]} {[%emt 00:06:46]} Bc6 {[%clk 01:25:18]}
{[%emt 00:03:56]} 13. Rfd1 {[%clk 01:17:04]} {[%emt 00:02:39]} Qc7 {[%clk
01:24:23]} {[%emt 00:01:25]} 14. a3 {[%clk 01:13:27]} {[%emt 00:04:07]} Rfc8
{[%clk 01:14:14]} {[%emt 00:10:38]} 15. b4 {[%clk 01:01:33]} {[%emt 00:12:25]}
b5 {[%clk 01:06:39]} {[%emt 00:08:05]} 16. cxb5 {[%clk 00:49:25]} {[%emt
00:12:39]} axb4 {[%clk 01:01:31]} {[%emt 00:05:38]} 17. bxc6 {[%clk 00:43:40]}
{[%emt 00:06:15]} bxc3 {[%clk 00:59:34]} {[%emt 00:02:27]} 18. Bb5 {[%clk
00:41:41]} {[%emt 00:02:29]} Qa5 {[%clk 00:56:58]} {[%emt 00:03:06]} 19. a4
{[%clk 00:41:05]} {[%emt 00:01:06]} Ne8 {[%clk 00:50:35]} {[%emt 00:06:53]} 20.
Bxg7 {[%clk 00:37:09]} {[%emt 00:04:26]} Kxg7 {[%clk 00:47:29]} {[%emt
00:03:36]} 21. Rac1 {[%clk 00:36:39]} {[%emt 00:01:00]} Nc7 {[%clk 00:45:03]}
{[%emt 00:02:56]} 22. Qxc3+ {[%clk 00:34:30]} {[%emt 00:02:39]} Qxc3 {[%clk
00:39:41]} {[%emt 00:05:52]} 23. Rxc3 {[%clk 00:34:57]} {[%emt 00:00:04]} Ra5
{[%clk 00:37:56]} {[%emt 00:02:15]} 24. Rb1 {[%clk 00:32:44]} {[%emt 00:02:43]}
f5 {[%clk 00:34:42]} {[%emt 00:03:44]} 25. f3 {[%clk 00:26:59]} {[%emt
00:06:14]} Kf6 {[%clk 00:31:41]} {[%emt 00:03:31]} 26. Kf2 {[%clk 00:22:00]}
{[%emt 00:05:30]} fxe4 {[%clk 00:29:33]} {[%emt 00:02:38]} 27. fxe4 {[%clk
00:21:45]} {[%emt 00:00:45]} Ke5 {[%clk 00:29:37]} {[%emt 00:00:26]} 28. Rf3
{[%emt 00:07:45]} Ne6 {[%clk 00:27:06]} 29. Rf7 {[%clk 00:16:04]} {[%emt
00:01:56]} Rc7 {[%clk 00:26:40]} {[%emt 00:00:57]} 30. Rxh7 {[%clk 00:13:47]}
{[%emt 00:02:47]} Nc5 {[%clk 00:23:41]} {[%emt 00:03:29]} 31. Ra1 {[%clk
00:07:56]} {[%emt 00:06:21]} Nxe4+ {[%clk 00:21:37]} {[%emt 00:02:33]} 32. Ke3
{[%clk 00:08:10]} {[%emt 00:00:16]} Nc3 {[%clk 00:19:18]} {[%emt 00:02:50]} 33.
Re1 {[%clk 00:05:55]} {[%emt 00:02:45]} Nxb5 {[%clk 00:18:01]} {[%emt
00:01:47]} 34. Kd3+ {[%clk 00:05:31]} {[%emt 00:00:53]} Kd5 {[%clk 00:16:29]}
{[%emt 00:02:01]} 35. axb5 {[%clk 00:05:51]} {[%emt 00:00:11]} Rxb5 {[%clk
00:16:44]} {[%emt 00:00:15]} 36. Rhxe7 {[%clk 00:05:02]} {[%emt 00:01:18]} Rxc6
{[%clk 00:16:50]} {[%emt 00:00:25]} 37. Rg7 {[%clk 00:04:34]} {[%emt 00:00:57]}
Rb2 {[%clk 00:11:44]} {[%emt 00:05:36]} 38. Re2 {[%clk 00:02:07]} {[%emt
00:02:57]} Rb3+ {[%clk 00:02:43]} {[%emt 00:09:32]} 39. Kd2 {[%clk 00:02:27]}
{[%emt 00:00:10]} Rcc3 {[%clk 00:01:44]} {[%emt 00:01:29]} 40. Rxg6 {[%clk
00:01:41]} {[%emt 00:01:16]} Kc5 {[%clk 00:01:37]} {[%emt 00:00:37]} 41. h4
{[%clk 00:26:28]} {[%emt 00:05:42]} Rg3 {[%clk 00:29:38]} {[%emt 00:02:29]} 42.
Rxg3 {[%clk 00:26:03]} {[%emt 00:00:56]} Rxg3 {[%clk 00:29:57]} {[%emt
00:00:11]} 43. h5 {[%clk 00:25:30]} {[%emt 00:01:03]} d5 {[%clk 00:20:06]}
{[%emt 00:10:19]} 44. h6 {[%clk 00:22:43]} {[%emt 00:03:17]} Rg6 {[%clk
00:20:26]} {[%emt 00:00:10]} 45. h7 {[%clk 00:22:58]} {[%emt 00:00:16]} Rh6
{[%clk 00:20:51]} {[%emt 00:00:04]} 46. Re7 {[%clk 00:23:07]} {[%emt 00:00:20]}
Kd6 {[%clk 00:21:03]} {[%emt 00:00:19]} 47. Rg7 {[%clk 00:18:17]} {[%emt
00:05:20]} Ke5 {[%clk 00:20:39]} {[%emt 00:00:54]} 48. Ke3 {[%clk 00:16:38]}
{[%emt 00:02:09]} Rh1 {[%clk 00:17:01]} {[%emt 00:04:08]} 49. Re7+ {[%clk
00:13:47]} {[%emt 00:03:21]} Kf6 {[%clk 00:15:41]} {[%emt 00:01:50]} 50. Rd7
{[%clk 00:13:14]} {[%emt 00:01:04]} Rh4 {[%clk 00:15:30]} {[%emt 00:00:39]} 51.
g3 {[%clk 00:12:14]} {[%emt 00:01:32]} Rh5 {[%clk 00:11:37]} {[%emt 00:04:22]}
52. Kd4 {[%clk 00:07:47]} {[%emt 00:04:58]} Kg6 {[%clk 00:10:42]} {[%emt
00:01:24]} 53. Ke3 {[%clk 00:04:22]} {[%emt 00:03:56]} Rxh7 {[%clk 00:10:18]}
{[%emt 00:00:54]} 54. Rxd5 {[%clk 00:04:49]} {[%emt 00:00:02]} Rf7 {[%clk
00:10:38]} {[%emt 00:00:11]} 55. Ke4 {[%clk 00:04:35]} {[%emt 00:00:43]} Rf1
{[%clk 00:10:42]} {[%emt 00:00:25]} 56. Ra5 {[%clk 00:04:44]} {[%emt 00:00:22]}
Rf2 {[%clk 00:10:38]} {[%emt 00:00:34]} 57. Ke3 {[%clk 00:04:38]} {[%emt
00:00:36]} Rf1 {[%clk 00:11:01]} {[%emt 00:00:07]} 58. g4 {[%clk 00:04:57]}
{[%emt 00:00:11]} Rf8 {[%clk 00:11:15]} {[%emt 00:00:15]} 59. Ke4 {[%clk
00:05:14]} {[%emt 00:00:14]} Rf1 {[%clk 00:11:38]} {[%emt 00:00:08]} 60. Ra8
{[%clk 00:05:36]} {[%emt 00:00:07]} Kg7 {[%clk 00:11:36]} {[%emt 00:00:32]} 61.
Ke5 {[%clk 00:05:45]} {[%emt 00:00:21]} Rf2 {[%clk 00:11:37]} {[%emt 00:00:29]}
62. Ra6 {[%clk 00:06:09]} {[%emt 00:00:06]} Rf1 {[%clk 00:11:42]} {[%emt
00:00:24]} 63. Ra7+ {[%clk 00:06:21]} {[%emt 00:00:19]} Kg6 {[%clk 00:11:52]}
{[%emt 00:00:19]} 64. Ra8 {[%clk 00:06:48]} {[%emt 00:00:04]} Kg7 {[%clk
00:12:04]} {[%emt 00:00:17]} 65. Ke6 {[%clk 00:07:12]} {[%emt 00:00:07]} Rf2
{[%clk 00:12:07]} {[%emt 00:00:27]} 66. Ra5 {[%clk 00:07:24]} {[%emt 00:00:18]}
Kg6 {[%clk 00:12:05]} {[%emt 00:00:31]} 67. Rd5 {[%clk 00:06:03]} {[%emt
00:01:52]} Re2+ {[%clk 00:12:14]} {[%emt 00:00:22]} 68. Kd6 {[%clk 00:06:27]}
{[%emt 00:00:05]} Re1 {[%clk 00:12:22]} {[%emt 00:00:20]} 1/2-1/2

[Event "NJSK 2024 A"]
[Site "Groningen, Netherlands"]
[Date "2024.04.27"]
[Round "1.5"]
[White "Ramak, Vince"]
[Black "Moskalets, Sofiia"]
[Result "0-1"]
[TimeControl "90min/40moves + 30min + 30sec/move"]
[WhiteElo "1902"]
[BlackElo "2050"]

1. e4 {[%clk 01:30:57]} {[%emt 00:00:02]} c5 {[%clk 01:30:49]} {[%emt
00:00:12]} 2. Be2 {[%clk 01:31:18]} {[%emt 00:00:08]} Nc6 {[%clk 01:31:00]}
{[%emt 00:00:20]} 3. d3 {[%clk 01:31:40]} {[%emt 00:00:08]} e6 {[%clk
01:30:39]} {[%emt 00:00:51]} 4. f4 {[%clk 01:32:03]} {[%emt 00:00:07]} d5
{[%clk 01:29:45]} {[%emt 00:01:24]} 5. Nf3 {[%clk 01:32:23]} {[%emt 00:00:10]}
Nf6 {[%clk 01:24:07]} {[%emt 00:06:08]} 6. e5 {[%clk 01:32:38]} {[%emt
00:00:15]} Nd7 {[%clk 01:24:15]} {[%emt 00:00:22]} 7. c3 {[%clk 01:32:47]}
{[%emt 00:00:21]} d4 {[%clk 01:18:38]} {[%emt 00:06:07]} 8. Nbd2 {[%clk
01:29:19]} {[%emt 00:03:58]} Be7 {[%clk 01:12:29]} {[%emt 00:06:39]} 9. O-O
{[%clk 01:27:49]} {[%emt 00:02:00]} O-O {[%clk 01:12:01]} {[%emt 00:00:58]} 10.
Ne4 {[%clk 01:26:28]} {[%emt 00:01:51]} f6 {[%clk 01:07:46]} {[%emt 00:04:45]}
11. cxd4 {[%clk 01:20:50]} {[%emt 00:06:08]} cxd4 {[%clk 01:04:45]} {[%emt
00:03:31]} 12. exf6 {[%clk 01:19:44]} {[%emt 00:01:36]} Nxf6 {[%clk 01:05:03]}
{[%emt 00:00:12]} 13. a3 {[%clk 01:12:56]} {[%emt 00:07:18]} Nd5 {[%clk
00:59:07]} {[%emt 00:06:26]} 14. g3 {[%clk 01:07:29]} {[%emt 00:05:56]} b5
{[%clk 00:52:12]} {[%emt 00:07:25]} 15. Re1 {[%clk 01:01:20]} {[%emt 00:06:39]}
Qb6 {[%clk 00:49:17]} {[%emt 00:03:25]} 16. Bf1 {[%clk 01:00:06]} {[%emt
00:01:44]} h6 {[%clk 00:48:18]} {[%emt 00:01:29]} 17. Bh3 {[%clk 00:54:54]}
{[%emt 00:05:42]} b4 {[%clk 00:43:51]} {[%emt 00:04:57]} 18. Ne5 {[%clk
00:52:15]} {[%emt 00:03:09]} Nxe5 {[%clk 00:28:54]} {[%emt 00:15:28]} 19. fxe5
{[%clk 00:52:33]} {[%emt 00:00:11]} Ne3 {[%clk 00:29:10]} {[%emt 00:00:14]} 20.
Bxe3 {[%clk 00:51:32]} {[%emt 00:01:31]} dxe3 {[%clk 00:29:34]} {[%emt
00:00:07]} 21. d4 {[%clk 00:49:49]} {[%emt 00:02:13]} Bb7 {[%clk 00:27:21]}
{[%emt 00:02:42]} 22. Rxe3 {[%clk 00:44:05]} {[%emt 00:06:14]} Rad8 {[%clk
00:26:37]} {[%emt 00:01:15]} 23. Nd6 {[%clk 00:36:52]} {[%emt 00:07:43]} Bxd6
{[%clk 00:25:25]} {[%emt 00:01:41]} 24. Bxe6+ {[%clk 00:36:06]} {[%emt
00:01:16]} Kh8 {[%clk 00:25:47]} {[%emt 00:00:08]} 25. exd6 {[%clk 00:36:28]}
{[%emt 00:00:08]} Rxd6 {[%clk 00:25:58]} {[%emt 00:00:19]} 26. Qe2 {[%clk
00:34:15]} {[%emt 00:02:43]} Qxd4 {[%clk 00:22:18]} {[%emt 00:04:11]} 27. Bh3
{[%clk 00:32:31]} {[%emt 00:02:13]} Ba6 {[%clk 00:21:24]} {[%emt 00:01:24]} 28.
Qe1 {[%clk 00:31:34]} {[%emt 00:01:27]} Re8 {[%clk 00:21:02]} {[%emt 00:00:52]}
29. Kf2 {[%clk 00:31:32]} {[%emt 00:00:32]} Rf6+ {[%clk 00:21:23]} {[%emt
00:00:09]} 0-1